bitfinex/quotes_SOLUSD_20260208
["timestamp","ask_amount","ask_price","bid_price","bid_amount"]
[1770565983055,1.39382256,87.597,87.548,1.44798714]
[1770565984278,1.39382256,87.597,87.531,1.44798714]
[1770565984772,1.39382256,87.597,87.534,11.42412163]
[1770565985688,1.39382256,87.592,87.535,1.44798714]
[1770565988983,12.81052062,87.591,87.537,1.44798714]
[1770565989182,1.39382256,87.591,87.537,1.44798714]
[1770565989558,12.80660556,87.622,87.545,1.44798714]
[1770565989778,12.80660556,87.622,87.552,5.36086188]
[1770565989779,1.39382256,87.621,87.552,5.36086188]
[1770565990077,7.1424281,87.625,87.573,1.44798714]
[1770565990273,7.1424281,87.625,87.577,1.44798714]
[1770565991276,7.1424281,87.625,87.579,1.44798714]
[1770565991867,7.1424281,87.625,87.583,1.44798714]
[1770565992071,7.1424281,87.625,87.587,1.44798714]
[1770565993780,7.1424281,87.625,87.589,1.44798714]
[1770565994364,7.1424281,87.625,87.588,76.67981183]
[1770565994365,1.39382256,87.648,87.597,1.44798714]
[1770565995982,1.40689431,87.646,87.599,1.34906895]
[1770565996577,1.40689431,87.646,87.601,1.34906895]
[1770565998584,1.40689431,87.644,87.603,1.34906895]
[1770565999678,1.40689431,87.644,87.602,11.41526449]
[1770565999875,1.40689431,87.644,87.603,1.34906895]
[1770566000888,1.40689431,87.644,87.605,1.34906895]
[1770566003669,1.40689431,87.644,87.607,1.34906895]
[1770566006212,1.40689431,87.644,87.609,1.34906895]
[1770566007088,1.40689431,87.651,87.609,1.34906895]
[1770566007292,1.60689431,87.65,87.609,1.34906895]
[1770566007589,1.40689431,87.649,87.609,1.34906895]
[1770566008091,0.2,87.65,87.609,1.34906895]
[1770566008274,0.2,87.65,87.611,1.34906895]
[1770566008681,1.60689431,87.65,87.611,1.34906895]
[1770566012698,1.60689431,87.65,87.613,1.34906895]
[1770566015295,1.60689431,87.65,87.568,41.12]
[1770566015296,1.60689431,87.65,87.614,11.413701]
[1770566015592,1.60689431,87.65,87.615,1.34906895]
[1770566016501,1.40689431,87.648,87.617,1.34906895]
[1770566016994,1.40689431,87.657,87.618,1.34906895]
[1770566017202,7.22901137,87.663,87.618,1.34906895]
[1770566018593,7.22901137,87.663,87.62,1.34906895]
[1770566020102,7.22901137,87.663,87.626,1.34906895]
[1770566020288,1.40689431,87.687,87.637,1.34906895]
[1770566020492,1.40689431,87.687,87.639,1.34906895]
[1770566021599,1.40689431,87.694,87.646,5.36086188]
[1770566021778,1.40689431,87.694,87.647,1.34906895]
[1770566022985,1.40689431,87.694,87.649,1.34906895]
[1770566023916,1.40689431,87.698,87.657,1.34906895]
[1770566024087,1.40689431,87.709,87.666,5.36086188]
[1770566024288,1.40689431,87.709,87.667,1.34906895]
[1770566024525,7.24676929,87.717,87.671,1.34906895]
[1770566024811,7.24676929,87.717,87.677,1.34906895]
[1770566025108,7.24676929,87.717,87.679,1.41212378]
[1770566025996,7.24676929,87.717,87.687,1.41212378]
[1770566026300,0.47960206,87.754,87.696,5.36086188]
[1770566026301,1.36726837,87.741,87.696,5.36086188]
[1770566026482,1.36726837,87.741,87.697,1.41212378]
[1770566027099,1.36726837,87.739,87.698,11.40276859]
[1770566027485,1.36726837,87.739,87.699,1.41212378]
[1770566029596,1.36726837,87.739,87.701,1.41212378]
[1770566029909,1.36726837,87.753,87.707,1.41212378]
[1770566030691,0.47960206,87.754,87.717,1.41212378]
[1770566031309,1.4743995,87.779,87.722,5.13032502]
[1770566031512,1.4743995,87.779,87.723,5.36086188]
[1770566031814,1.4743995,87.779,87.722,5.13032502]
[1770566031815,1.4743995,87.779,87.725,5.36086188]
[1770566033212,1.4743995,87.779,87.726,39.89695186]
[1770566034304,1.4743995,87.778,87.726,11.3991291]
[1770566034705,1.4743995,87.775,87.709,70.17155701]
[1770566035513,1.4743995,87.77,87.71,11.40120852]
[1770566037597,1.4743995,87.765,87.71,11.40120852]
[1770566039916,1.4743995,87.763,87.71,11.40120852]
[1770566040311,1.4743995,87.76,87.709,70.17155701]
[1770566040498,1.4743995,87.76,87.709,68.69715751]
[1770566041014,1.4743995,87.76,87.691,11.40356252]
[1770566041214,1.4743995,87.76,87.667,5.36086188]
[1770566041215,1.36726837,87.758,87.677,11.4054666]
[1770566041519,1.36726837,87.753,87.673,1.41212378]
[1770566041716,1.36726837,87.751,87.673,1.41212378]
[1770566041921,1.36726837,87.746,87.675,1.41212378]
[1770566042215,1.36726837,87.765,87.706,1.41212378]
[1770566042414,1.36726837,87.765,87.716,1.41212378]
[1770566044019,1.36726837,87.763,87.7,1.41212378]
[1770566044314,1.36726837,87.76,87.7,1.41212378]
[1770566044526,1.36726837,87.76,87.705,11.4018579]
[1770566044719,1.36726837,87.759,87.683,29.92387976]
[1770566044924,1.36726837,87.758,87.683,29.92387976]
[1770566045116,1.36726837,87.754,87.683,29.92387976]
[1770566045421,1.36726837,87.75,87.694,11.4031604]
[1770566045603,1.36726837,87.749,87.694,11.4031604]
[1770566045803,5.13032502,87.746,87.687,11.40414388]
[1770566046005,1.36726837,87.743,87.687,11.40414388]
[1770566046998,1.36726837,87.741,87.688,1.41212378]
[1770566047202,1.36726837,87.748,87.696,1.41212378]
[1770566047415,1.36726837,87.747,87.696,1.41212378]
[1770566047903,7.11965005,87.749,87.696,1.41212378]
[1770566048307,7.11965005,87.749,87.705,6.77298566]
[1770566048510,5.68438287,87.749,87.703,5.36086188]
[1770566049322,1.45483334,87.767,87.705,5.36086188]
[1770566049510,1.45483334,87.766,87.705,5.36086188]
[1770566050903,1.45483334,87.765,87.705,5.36086188]
[1770566051124,11.39419351,87.764,87.706,39.90604975]
[1770566051324,1.45483334,87.763,87.706,39.90604975]
[1770566052931,1.45483334,87.763,87.706,96.91469226]
[1770566053118,1.45483334,87.763,87.707,5.36086188]
[1770566054533,1.45483334,87.763,87.709,5.36086188]
[1770566055829,1.45483334,87.763,87.702,5.13032502]
[1770566055830,1.45483334,87.763,87.711,5.36086188]
[1770566058131,1.45483334,87.763,87.713,5.36086188]
[1770566059630,11.39175822,87.783,87.713,5.36086188]
[1770566059631,1.45483334,87.782,87.713,5.36086188]
[1770566061044,11.39175822,87.783,87.713,5.36086188]
[1770566061045,1.45483334,87.78,87.715,5.36086188]
[1770566063337,1.45483334,87.778,87.717,5.36086188]
[1770566066717,1.45483334,87.776,87.719,5.36086188]
[1770566067036,1.45483334,87.776,87.718,39.90059052]
[1770566067936,1.45483334,87.774,87.701,10.4911869]
[1770566070834,1.45483334,87.772,87.706,5.36086188]
[1770566073236,1.45483334,87.77,87.708,5.36086188]
[1770566073781,1.45483334,87.792,87.712,5.36086188]
[1770566073929,1.45483334,87.79,87.708,5.36086188]
[1770566074132,1.45483334,87.79,87.716,5.36086188]
[1770566074528,1.45483334,87.79,87.711,10.4911869]
[1770566074833,1.45483334,87.79,87.707,96.91358728]
[1770566074834,1.45483334,87.787,87.708,5.36086188]
[1770566075239,1.45483334,87.785,87.71,5.36086188]
[1770566076342,1.45483334,87.783,87.711,39.90377489]
[1770566077141,1.45483334,87.783,87.712,5.36086188]
[1770566081263,1.45483334,87.781,87.714,5.36086188]
[1770566083355,1.45483334,87.779,87.716,5.36086188]
[1770566085354,1.45483334,87.777,87.717,39.90104539]
[1770566085845,1.45483334,87.777,87.717,11.40029868]
[1770566086036,1.45483334,87.777,87.717,39.90104539]
[1770566087643,1.45483334,87.777,87.689,57.01942505]
[1770566087644,1.45483334,87.775,87.699,5.36086188]
[1770566087844,1.45483334,87.775,87.703,5.36086188]
[1770566092349,1.45483334,87.773,87.705,5.36086188]
[1770566094559,1.45483334,87.771,87.706,96.91469226]
[1770566101267,1.45483334,87.788,87.722,5.13032502]
[1770566101469,1.45483334,87.788,87.723,5.36086188]
[1770566102270,1.45483334,87.787,87.707,13.93364304]
[1770566102566,1.45483334,87.787,87.706,96.91469226]
[1770566102772,1.45483334,87.787,87.706,39.90604975]
[1770566103254,1.45483334,87.782,87.695,5.36086188]
[1770566103456,1.45483334,87.782,87.691,10.4911869]
[1770566104666,1.45483334,87.782,87.693,5.36086188]
[1770566104872,1.45483334,87.782,87.695,5.36086188]
[1770566105099,1.45483334,87.782,87.706,5.36086188]
[1770566105368,1.45483334,87.782,87.687,96.93569171]
[1770566105369,1.45483334,87.782,87.727,5.36086188]
[1770566105547,1.45483334,87.79,87.73,5.13032502]
[1770566105750,1.45483334,87.79,87.735,5.36086188]
[1770566106459,1.45483334,87.79,87.742,5.13032502]
[1770566106661,7.12263605,87.791,87.739,10.4911869]
[1770566107771,1e-08,87.791,87.749,5.36086188]
[1770566107970,1e-08,87.791,87.748,5.13032502]
[1770566108150,1e-08,87.791,87.753,5.36086188]
[1770566108751,1e-08,87.791,87.755,5.36086188]
[1770566110856,1e-08,87.791,87.764,5.13032502]
[1770566111257,1.45483334,87.813,87.764,5.13032502]
[1770566113077,1.45483334,87.813,87.765,96.84954138]
[1770566113466,1.45483334,87.813,87.766,5.36086188]
[1770566113972,28.45499279,87.859,87.775,1.20307244]
[1770566114278,28.45499279,87.859,87.786,1.20307244]
[1770566114279,11.38343997,87.847,87.786,1.20307244]
[1770566114656,11.38409765,87.842,87.786,1.20307244]
[1770566115173,28.45499279,87.859,87.788,1.19585814]
[1770566115979,1.29379245,87.839,87.787,39.86922892]
[1770566116178,1.29379245,87.839,87.779,11.392125]
[1770566116651,1.29379245,87.839,87.783,11.3916525]
[1770566116857,1.29379245,87.839,87.778,11.39229876]
[1770566117258,1.29379245,87.837,87.76,28.48676385]
[1770566117472,1.29379245,87.837,87.761,1.19118565]
[1770566118759,1.29379245,87.834,87.762,11.39445318]
[1770566119560,1.29379245,87.834,87.69,45.61522222]
[1770566119561,1.29379245,87.834,87.761,10.07259914]
[1770566119760,1.29379245,87.834,87.742,1.18661988]
[1770566119761,1.29379245,87.829,87.735,1.32061778]
[1770566119962,1.29379245,87.825,87.735,1.32061778]
[1770566120181,1.29379245,87.824,87.735,1.32061778]
[1770566120596,1.29379245,87.824,87.754,11.39548201]
[1770566120876,1.29379245,87.819,87.747,1.32061778]
[1770566123392,1.29379245,87.814,87.748,11.39627114]
[1770566123591,1.29379245,87.814,87.749,1.32061778]
[1770566125191,1.29379245,87.812,87.751,1.32061778]
[1770566125481,1.29379245,87.812,87.755,1.32061778]
[1770566125679,1.29379245,87.812,87.75,39.88603988]
[1770566126066,1.29379245,87.812,87.751,1.32061778]
[1770566127186,1.29379245,87.81,87.753,1.32061778]
[1770566129986,1.29379245,87.81,87.755,1.32061778]
[1770566130798,5.13032502,87.845,87.755,1.32061778]
[1770566130799,1.29379245,87.837,87.755,1.32061778]
[1770566130998,1.29379245,87.831,87.765,5.36086188]
[1770566131192,1.29379245,87.831,87.766,1.32061778]
[1770566132206,11.38563133,87.83,87.767,39.87831416]
[1770566132374,1.29379245,87.829,87.768,1.32061778]
[1770566132998,1.29379245,87.829,87.776,1.32061778]
[1770566134596,1.29379245,87.829,87.778,1.32061778]
[1770566134773,1.29379245,87.827,87.771,11.39323734]
[1770566134976,1.29379245,87.827,87.775,11.3927165]
[1770566135795,1.29379245,87.824,87.769,11.3934596]
[1770566135998,1.29379245,87.824,87.773,11.39298626]
[1770566137477,1.29379245,87.824,87.755,1.32061778]
[1770566137682,1.29379245,87.819,87.757,1.32061778]
[1770566139993,11.38718713,87.818,87.758,39.88240387]
[1770566140297,1.29379245,87.817,87.759,1.32061778]
[1770566142778,1.29379245,87.815,87.761,1.32061778]
[1770566145985,1.25149015,87.813,87.763,1.19134172]
[1770566147109,28.46861619,87.816,87.765,1.19134172]
[1770566147110,1.25149015,87.811,87.765,1.19134172]
[1770566150983,1.25149015,87.809,87.767,1.19134172]
[1770566152689,1.25149015,87.832,87.767,1.19134172]
[1770566152889,1.25149015,87.831,87.767,1.19134172]
[1770566154410,33.58960015,87.845,87.769,1.19134172]
[1770566154411,1.25149015,87.829,87.769,1.19134172]
[1770566155691,1.25149015,87.827,87.771,1.19134172]
[1770566155908,1.25149015,87.827,87.775,1.19134172]
[1770566157905,1.25149015,87.827,87.786,1.19134172]
[1770566158103,1.25149015,87.839,87.786,1.19134172]
[1770566159095,1.25149015,87.838,87.786,1.19134172]
[1770566159906,11.38472397,87.837,87.787,11.39120826]
[1770566160106,1.25149015,87.836,87.787,11.39120826]
[1770566160411,1.25149015,87.836,87.788,1.19134172]
[1770566161330,1.25149015,87.836,87.776,85.4447685]
[1770566161331,1.25149015,87.836,87.766,1.19134172]
[1770566161490,1.25149015,87.833,87.774,11.39288717]
[1770566161695,1.25149015,87.833,87.779,1.19134172]
[1770566161893,1.25149015,87.833,87.788,1.19134172]
[1770566162312,1.25149015,87.828,87.788,1.19134172]
[1770566163316,1.25149015,87.828,87.787,11.39120826]
[1770566165211,1.25149015,87.826,87.782,11.3918571]
[1770566165611,1.25149015,87.826,87.782,12.58319882]
[1770566168019,11.38627953,87.825,87.783,1.19134172]
[1770566168227,1.25149015,87.824,87.783,1.19134172]
[1770566170132,1.25149015,87.822,87.785,1.19134172]
[1770566170307,12.63657789,87.835,87.785,1.19134172]
[1770566170503,1.25149015,87.834,87.785,1.19134172]
[1770566171106,1.25149015,87.833,87.785,1.19134172]
[1770566173028,1.25149015,87.833,87.787,1.19134172]
[1770566173907,1.25149015,87.831,87.787,1.19134172]
[1770566176729,1.25149015,87.831,87.789,1.2371762]
[1770566178728,1.21793556,87.838,87.789,1.2371762]
[1770566178916,1.21793556,87.838,87.791,1.2371762]
[1770566179235,0.1,87.84,87.791,1.2371762]
[1770566179524,0.1,87.84,87.806,5.36086188]
[1770566179734,0.1,87.84,87.807,1.2371762]
[1770566180321,1.21793556,87.858,87.808,1.2371762]
[1770566181036,1.21793556,87.849,87.81,1.2371762]
[1770566181714,1.21793556,87.849,87.809,11.38835426]
[1770566184037,1.21793556,87.847,87.791,1.2371762]
[1770566184239,1.21793556,87.847,87.796,11.38993355]
[1770566184943,1.21793556,87.847,87.804,1.2371762]
[1770566186050,1.21793556,87.847,87.806,1.2371762]
[1770566186372,1.21793556,87.849,87.806,1.2371762]
[1770566186538,1.21793556,87.848,87.805,11.38887307]
[1770566187043,1.21793556,87.848,87.806,1.2371762]
[1770566189645,1.21793556,87.848,87.808,1.2371762]
[1770566189850,1.21793556,87.855,87.808,1.2371762]
[1770566190148,1.21793556,87.849,87.808,1.2371762]
[1770566190650,1.21793556,87.856,87.808,1.2371762]
[1770566192025,11.38239144,87.855,87.81,1.2371762]
[1770566192841,1.21793556,87.849,87.81,1.2371762]
[1770566194151,1.21793556,87.849,87.812,1.2371762]
[1770566199150,1.21793556,87.847,87.813,11.38783551]
[1770566199336,1.21793556,87.847,87.804,1.2371762]
[1770566199541,1.21793556,87.847,87.777,1.2371762]
[1770566200355,1.21793556,87.847,87.805,11.38885453]
[1770566201368,1.21793556,87.845,87.783,1.2371762]
[1770566201554,1.21793556,87.842,87.761,1.2371762]
[1770566202138,1.21793556,87.842,87.768,11.3936438]
[1770566202339,1.21793556,87.842,87.772,11.3930893]
[1770566203160,1.21793556,87.842,87.781,1.2371762]
[1770566203656,1.21793556,87.837,87.783,1.2371762]
[1770566205956,1.1313698,87.835,87.785,1.14381741]
[1770566207454,1.1313698,87.833,87.787,1.14381741]
[1770566209758,1.1313698,87.831,87.787,1.14381741]
[1770566209967,1.1313698,87.831,87.781,11.39195151]
[1770566210553,1.1313698,87.831,87.786,1.14381741]
[1770566210750,1.1313698,87.828,87.778,1.14381741]
[1770566210948,1.1313698,87.828,87.772,11.39304721]
[1770566211455,1.1313698,87.828,87.772,12.53686462]
[1770566211944,39.84880225,87.832,87.772,12.53686462]
[1770566211945,1.1313698,87.826,87.772,12.53686462]
[1770566214061,39.85197836,87.825,87.773,1.14381741]
[1770566214367,1.1313698,87.824,87.773,1.14381741]
[1770566214562,1.1313698,87.824,87.748,1.14381741]
[1770566214766,1.1313698,87.821,87.748,1.14381741]
[1770566216266,1.1313698,87.816,87.75,1.14381741]
[1770566216649,1.1313698,87.816,87.756,1.14381741]
[1770566216947,1.1313698,87.832,87.766,1.14381741]
[1770566217860,0.73699998,87.836,87.766,1.14381741]
[1770566217861,1.1313698,87.83,87.766,1.14381741]
[1770566218269,0.73699998,87.836,87.768,1.14381741]
[1770566218270,1.1313698,87.828,87.768,1.14381741]
[1770566218976,1.1313698,87.828,87.776,1.14381741]
[1770566219268,11.385173,87.834,87.776,1.14381741]
[1770566219570,1.1313698,87.833,87.776,1.14381741]
[1770566219869,1.1313698,87.833,87.783,5.36086188]
[1770566220046,0.73699998,87.836,87.786,1.14381741]
[1770566220251,0.73699998,87.836,87.787,39.86922892]
[1770566220446,0.73699998,87.836,87.788,1.14381741]
[1770566221175,0.1,87.85,87.792,1.14381741]
[1770566221473,0.1,87.85,87.806,1.14381741]
[1770566221968,1.2313698,87.85,87.806,1.14381741]
[1770566222268,1.2313698,87.85,87.807,39.86014782]
[1770566222473,1.2313698,87.85,87.808,1.14381741]
[1770566222970,1.1313698,87.867,87.845,1.14381741]
[1770566223174,12.51121959,87.875,87.845,1.14381741]
[1770566223364,1.1313698,87.875,87.845,1.14381741]
[1770566223572,7.11594567,87.891,87.846,1.14381741]
[1770566224469,7.11594567,87.891,87.848,1.14381741]
[1770566226864,1.1313698,87.879,87.85,1.14381741]
[1770566227064,1.1313698,87.887,87.85,1.14381741]
[1770566229179,1.1313698,87.887,87.852,1.14381741]
[1770566229379,7.11594567,87.891,87.856,1.14381741]
[1770566229759,0.1,87.91,87.865,5.36086188]
[1770566230161,0.1,87.91,87.861,5.36086188]
[1770566230369,0.1,87.91,87.865,5.36086188]
[1770566230797,1.22942478,87.899,87.851,39.84018393]
[1770566231280,1.22942478,87.897,87.788,5.36086188]
[1770566231775,1.22942478,87.897,87.808,5.36086188]
[1770566231983,1.22942478,87.897,87.788,19.29450492]
[1770566231984,1.22942478,87.897,87.824,5.36086188]
[1770566232368,1.22942478,87.895,87.826,5.36086188]
[1770566233284,1.22942478,87.893,87.828,5.36086188]
[1770566235885,1.22942478,87.891,87.83,5.36086188]
[1770566238779,1.22942478,87.891,87.832,5.36086188]
[1770566238980,1.22942478,87.889,87.832,5.36086188]
[1770566240284,1.22942478,87.899,87.832,5.36086188]
[1770566241386,1.22942478,87.899,87.834,5.36086188]
[1770566241768,1.22942478,87.899,87.836,5.36086188]
[1770566241969,1.22942478,87.897,87.834,5.36086188]
[1770566242676,0.1,87.9,87.837,5.13032502]
[1770566242877,0.1,87.9,87.846,5.36086188]
[1770566243073,1.32942478,87.9,87.846,5.36086188]
[1770566243274,1.32942478,87.9,87.847,39.84199801]
[1770566243473,1.32942478,87.9,87.848,5.36086188]
[1770566244781,0.1,87.9,87.848,5.36086188]
[1770566245900,1.22942478,87.921,87.854,5.36086188]
[1770566246198,1.22942478,87.921,87.866,5.36086188]
[1770566246429,1.22942478,87.928,87.864,5.13032502]
[1770566246577,1.22942478,87.928,87.865,5.36086188]
[1770566246780,1.22942478,87.919,87.865,5.36086188]
[1770566248286,1.22942478,87.918,87.866,39.83338264]
[1770566250908,1.22942478,87.918,87.867,5.36086188]
[1770566252409,1.22942478,87.916,87.866,28.45241617]
[1770566253285,1.22942478,87.916,87.867,5.36086188]
[1770566254101,1.22942478,87.916,87.866,28.45241617]
[1770566254506,1.22942478,87.915,87.866,28.45241617]
[1770566257396,1.22942478,87.913,87.866,28.45241617]
[1770566260414,11.37501137,87.912,87.85,5.36086188]
[1770566260621,1.22942478,87.911,87.85,5.36086188]
[1770566261117,1.22942478,87.911,87.849,39.84109095]
[1770566262620,1.22942478,87.906,87.837,11.38472397]
[1770566262823,1.22942478,87.905,87.837,11.38472397]
[1770566263902,1.22942478,87.903,87.837,11.38472397]
[1770566264111,1.22942478,87.901,87.837,11.38472397]
[1770566264316,1.22942478,87.899,87.837,11.38472397]
[1770566264518,1.22942478,87.899,87.826,28.46507008]
[1770566264519,1.22942478,87.893,87.829,39.85016337]
[1770566266420,1.22942478,87.893,87.829,11.38576096]
[1770566266610,1.22942478,87.888,87.829,11.38576096]
[1770566267325,1.22942478,87.887,87.829,11.38576096]
[1770566267507,1.22942478,87.886,87.829,11.38576096]
[1770566269624,39.824771,87.885,87.829,11.38576096]
[1770566269841,1.22942478,87.881,87.822,11.3865448]
[1770566270211,1.22942478,87.881,87.806,11.38865533]
[1770566270408,1.22942478,87.881,87.805,12.55333162]
[1770566270641,1.22942478,87.881,87.806,1.16454715]
[1770566270941,1.22942478,87.881,87.808,1.16454715]
[1770566271113,1.22942478,87.881,87.817,1.16454715]
[1770566271726,5.13032502,87.877,87.802,28.47286216]
[1770566271928,5.13032502,87.877,87.809,1.16454715]
[1770566272226,5.13032502,87.877,87.813,1.16454715]
[1770566272431,5.13032502,87.877,87.817,1.16454715]
[1770566273735,5.13032502,87.877,87.819,1.16454715]
[1770566273911,11.37967135,87.876,87.821,1.16454715]
[1770566274917,39.82884973,87.876,87.821,1.16454715]
[1770566277524,39.82884973,87.876,87.823,1.16454715]
[1770566277732,11.37967135,87.876,87.823,1.16454715]
[1770566280332,11.37967135,87.876,87.824,11.38640918]
[1770566280633,11.37967135,87.876,87.825,1.16454715]
[1770566281130,11.37837653,87.886,87.827,1.16454715]
[1770566282537,11.37837653,87.886,87.795,5.13032502]
[1770566282538,5.30600023,87.89,87.837,1.16454715]
[1770566282736,11.37798814,87.889,87.837,1.16454715]
[1770566283816,11.37798814,87.889,87.839,1.16454715]
[1770566284338,5.30600023,87.89,87.847,1.16454715]
[1770566286016,5.30600023,87.89,87.849,1.16454715]
[1770566287217,11.37798814,87.889,87.851,1.16454715]
[1770566289147,5.30600023,87.89,87.851,1.16454715]
[1770566289333,5.30600023,87.89,87.853,1.16454715]
[1770566290623,11.37798814,87.889,87.847,1.16454715]
[1770566290932,11.37798814,87.889,87.853,1.16454715]
[1770566291541,11.37798814,87.889,87.855,1.16454715]
[1770566293045,5.30600023,87.89,87.857,1.16454715]
[1770566293626,11.37798814,87.889,87.857,1.16454715]
[1770566294737,5.13032502,87.908,87.857,1.16454715]
[1770566294926,5.13032502,87.907,87.857,1.16454715]
[1770566296643,39.8152572,87.906,87.857,1.16454715]
[1770566297146,7.12459214,87.905,87.859,1.16454715]
[1770566300151,39.81616308,87.904,87.859,1.16454715]
[1770566301245,5.13032502,87.901,87.76,0.2]
[1770566301542,0.9589486,87.899,87.834,11.38505766]
[1770566301743,0.95316048,87.895,87.834,11.38505766]
[1770566301930,0.95316048,87.894,87.834,11.38505766]
[1770566302130,0.95316048,87.89,87.834,11.38505766]
[1770566302331,0.95316048,87.889,87.834,11.38505766]
[1770566302532,0.95316048,87.884,87.809,5.36086188]
[1770566303346,0.95316048,87.884,87.811,5.36086188]
[1770566303548,0.95316048,87.884,87.816,1.01754165]
[1770566304061,11.3781176,87.888,87.822,5.13032502]
[1770566304240,11.3781176,87.888,87.836,1.01754165]
[1770566304549,11.3781176,87.888,87.838,1.01754165]
[1770566305441,7.11793985,87.889,87.846,1.01754165]
[1770566306053,0.9306652,87.887,87.846,1.01754165]
[1770566306633,11.37837653,87.886,87.848,1.01754165]
[1770566306834,0.92639051,87.885,87.848,1.01754165]
[1770566308048,11.37837653,87.886,87.848,1.01754165]
[1770566308855,11.37837653,87.886,87.849,11.38316884]
[1770566309036,0.91798786,87.885,87.85,1.01754165]
[1770566311258,0.90977712,87.883,87.85,1.01754165]
[1770566312455,11.37863547,87.884,87.852,1.01754165]
[1770566313452,11.37863547,87.884,87.854,1.01754165]
[1770566313641,7.11793985,87.889,87.854,1.01754165]
[1770566313845,11.3781176,87.888,87.854,1.01754165]
[1770566314043,0.8978113,87.887,87.854,1.01754165]
[1770566314759,7.11793985,87.889,87.854,1.01754165]
[1770566314957,7.11793985,87.889,87.856,1.01754165]
[1770566315863,7.11793985,87.889,87.858,1.01754165]
[1770566318168,7.11793985,87.889,87.86,1.01754165]
[1770566321273,0.87145224,87.887,87.854,11.38250237]
[1770566321451,0.87145224,87.887,87.85,1.01754165]
[1770566322970,0.87145224,87.887,87.825,56.93118826]
[1770566322971,0.87145224,87.887,87.843,12.40142529]
[1770566323345,0.86430438,87.884,87.844,1.01754165]
[1770566324563,11.37837653,87.886,87.844,1.01754165]
[1770566326874,0.84714085,87.885,87.846,0.9197418]
[1770566327383,0.84714085,87.885,87.839,12.30410689]
[1770566327581,0.84714085,87.885,87.839,0.9197418]
[1770566328164,5.13032502,87.883,87.839,0.9197418]
[1770566328354,0.84382552,87.882,87.839,0.9197418]
[1770566328557,0.84382552,87.877,87.832,12.30499306]
[1770566328766,0.84382552,87.877,87.833,0.9197418]
[1770566329788,5.13032502,87.878,87.833,0.9197418]
[1770566329789,0.83730865,87.875,87.833,0.9197418]
[1770566330254,0.83730865,87.875,87.824,0.9197418]
[1770566332977,5.13032502,87.871,87.824,0.9197418]
[1770566333268,0.82781138,87.87,87.793,0.9197418]
[1770566333472,0.82781138,87.866,87.793,0.9197418]
[1770566333671,5.13032502,87.862,87.793,0.9197418]
[1770566333878,0.82471806,87.861,87.793,0.9197418]
[1770566334275,0.82471806,87.861,87.785,0.9197418]
[1770566334577,0.82471806,87.857,87.791,47.55717759]
[1770566335260,0.82166028,87.852,87.791,47.55717759]
[1770566337661,0.81564967,87.847,87.792,0.9197418]
[1770566340081,0.80689017,87.842,87.792,0.9197418]
[1770566340381,0.80689017,87.842,87.764,0.9197418]
[1770566340961,0.80403716,87.838,87.764,0.9197418]
[1770566341161,0.80403716,87.837,87.764,0.9197418]
[1770566341976,0.80121691,87.832,87.764,0.9197418]
[1770566342175,0.80121691,87.827,87.764,0.9197418]
[1770566344276,0.79567323,87.822,87.764,0.9197418]
[1770566344478,0.79567323,87.822,87.76,11.59465278]
[1770566344479,0.79567323,87.822,87.766,0.9197418]
[1770566345167,39.85152459,87.826,87.766,0.9197418]
[1770566345980,39.85152459,87.826,87.768,0.9197418]
[1770566346286,28.46537471,87.826,87.77,0.9197418]
[1770566347378,0.78759421,87.825,87.772,0.9197418]
[1770566350086,0.77979039,87.823,87.774,0.9197418]
[1770566352066,0.77473609,87.821,87.774,0.9197418]
[1770566353492,0.77473609,87.821,87.776,0.9197418]
[1770566354481,0.76737027,87.819,87.776,0.9197418]
[1770566355688,0.76259964,87.817,87.776,0.9197418]
[1770566357289,0.75793798,87.815,87.776,0.9197418]
[1770566360173,0.75114436,87.81,87.768,0.876948]
[1770566363482,5.13032502,87.806,87.768,0.876948]
[1770566363885,0.74244481,87.805,87.768,0.876948]
[1770566364676,0.74244481,87.805,87.761,0.876948]
[1770566364877,0.74244481,87.805,87.76,0.2]
[1770566366099,0.73824348,87.8,87.76,0.2]
[1770566368278,5.13032502,87.801,87.761,0.876948]
[1770566368490,0.87768867,87.798,87.75,0.2]
[1770566368696,0.87768867,87.795,87.75,0.2]
[1770566370294,5.13032502,87.791,87.75,0.2]
[1770566370505,0.87768867,87.79,87.751,0.876948]
[1770566372201,10.80875663,87.794,87.751,0.92111791]
[1770566372384,56.93330724,87.823,87.752,0.92111791]
[1770566372700,5.13032502,87.82,87.752,0.92111791]
[1770566373199,56.93330724,87.823,87.752,0.92111791]
[1770566373908,5.13032502,87.82,87.754,0.92111791]
[1770566374387,0.04496569,87.819,87.754,0.92111791]
[1770566380816,0.03447424,87.815,87.754,0.92111791]
[1770566381018,0.03447424,87.815,87.756,0.92111791]
[1770566384808,39.89099077,87.815,87.758,0.92111791]
[1770566385198,0.02768024,87.814,87.758,0.92111791]
[1770566387613,0.02768024,87.814,87.759,11.39484269]
[1770566387807,0.02768024,87.814,87.76,0.92111791]
[1770566389714,0.02768024,87.814,87.761,11.39458301]
[1770566390021,0.02768024,87.814,87.762,0.92111791]
[1770566392116,0.02768024,87.814,87.764,0.92111791]
[1770566395020,0.02768024,87.814,87.766,0.92111791]